fUST/lending_fUST_20240204
["ID","MTS","AMOUNT","RATE_DAILY","PERIOD"]
[313251421,1707023443321,-5000.0,0.00022983,2]
[313251422,1707023443330,-5130.97944025,0.00022983,2]
[313251454,1707023446403,-6261.75396286,0.00022983,2]
[313251456,1707023446412,-5000.0,0.00022983,2]
[313251458,1707023446421,-330.217518,0.00022983,2]
[313251648,1707023460938,300.0,0.0002,2]
[313251650,1707024303715,298.5949704,0.00019921,2]
[313251651,1707024420607,155.0,0.0002001,2]
[313251652,1707024433007,155.0,0.0002001,2]
[313251653,1707024443099,905.63862374,0.0002001,2]
[313251654,1707024450094,155.0,0.0002001,4]
[313251655,1707024468094,155.0,0.00018588,3]
[313251656,1707024488116,155.0,0.00018588,3]
[313251657,1707024506107,155.0,0.00018588,3]
[313251658,1707024522108,155.0,0.00018588,3]
[313251659,1707024542101,155.0,0.00018588,3]
[313251660,1707024564113,155.0,0.00018588,3]
[313251661,1707024583625,164.78879307,0.00019913,2]
[313251662,1707024586121,155.0,0.00018588,3]
[313251664,1707024606119,155.0,0.00018588,3]
[313251665,1707024609045,298.84681764,0.00019922,2]
[313251666,1707024622118,155.0,0.0002001,2]
[313251667,1707024624123,155.0,0.00018588,3]
[313251689,1707024632487,-562.79953521,0.00020011,2]
[313251690,1707024632497,-19124.88822616,0.00020021,2]
[313251691,1707024632506,-12077.551048,0.00020022,2]
[313251692,1707024632515,-1267.92,0.00020645,3]
[313251693,1707024632524,-1056.6,0.00020645,3]
[313251694,1707024632533,-880.5,0.00020645,3]
[313251695,1707024632542,-194.79274597,0.00020653,2]
[313251696,1707024632551,-184.55221461,0.00020653,2]
[313251697,1707024632560,-155.01395126,0.00020653,2]
[313251698,1707024632568,-15869.98835207,0.00020654,2]
[313251699,1707024632577,-50000.0,0.00020655,2]
[313251700,1707024632586,-514.59822616,0.00020783,2]
[313251701,1707024632596,-600.13794286,0.00020883,2]
[313251702,1707024632606,-514.59822612,0.00021727,2]
[313251703,1707024632615,-166.666666,0.00021918,2]
[313251704,1707024632624,-200.0,0.00022022,7]
[313251705,1707024632633,-514.59822612,0.0002267,2]
[313251706,1707024632642,-3346.58324694,0.00022978,2]
[313251731,1707024638539,-733.75,0.00022973,3]
[313251732,1707024638548,-107.32968719,0.00022978,2]
[313251733,1707024638587,-1239.4695691,0.00022978,2]
[313251737,1707024641762,-208.9295719,0.00022977,2]
[313251738,1707024641771,-939.19131271,0.00022978,2]
[313251748,1707024643523,-8176.40049848,0.00022978,2]
[313251749,1707024643533,-273.11559368,0.00022981,2]
[313251750,1707024643542,-1282.6834387,0.00022981,2]
[313251751,1707024643552,-296.05899781,0.00022981,2]
[313251752,1707024643562,-155.54001733,0.00022981,2]
[313251753,1707024643572,-1584.78217682,0.00022981,2]
[313251754,1707024643583,-613.44484973,0.00022981,2]
[313251755,1707024643593,-200.62925015,0.00022982,2]
[313251756,1707024643602,-44.45795362,0.00022983,2]
[313251898,1707025233102,202.152909,0.00019911,2]
[313251899,1707025597368,25655.0847175,0.00019516,2]
[313251900,1707025696562,21167.9240269,0.00019396,2]
[313251901,1707025697930,163.537019,0.00019178,2]
[313251902,1707025705059,24900.0,0.00019396,2]
[313251903,1707025712863,203.683616,0.00019396,2]
[313251930,1707025832587,-264.24848499,0.00020296,2]
[313251932,1707025832597,-167.39079548,0.00020297,2]
[313251934,1707025832606,-200.0,0.00020397,2]
[313251935,1707025832615,-2943.37627711,0.00020397,2]
[313251937,1707025832625,-348.21182294,0.00020397,2]
[313251939,1707025832635,-155.35403325,0.00020398,2]
[313251942,1707025832644,-295.79354085,0.00020678,2]
[313251945,1707025832653,-261.49096547,0.00020778,2]
[313251947,1707025832662,-400.0919619,0.00020878,2]
[313251951,1707025832671,-2465.67574349,0.00020924,2]
[313251953,1707025832680,-295.79354083,0.00021229,2]
[313251956,1707025832690,-295.79354083,0.00021781,2]
[313251958,1707025832699,-166.666666,0.00021918,2]
[313251960,1707025832708,-155.00310006,0.00021927,2]
[313251962,1707025832719,-1582.87149968,0.00021928,2]
[313251964,1707025832728,-1388.06,0.00022321,3]
[313251966,1707025832737,-1156.72,0.00022321,3]
[313251968,1707025832746,-963.93,0.00022321,3]
[313251969,1707025832754,-83879.34546947,0.00022331,2]
[313251971,1707025832763,-295.79354083,0.00022332,2]
[313251973,1707025832772,-200.0,0.00022427,7]
[313251975,1707025832781,-4653.0852887,0.00022751,2]
[313251977,1707025832791,-5000.0,0.00022789,2]
[313251979,1707025832800,-5000.0,0.00022789,2]
[313251981,1707025832809,-5000.0,0.00022789,2]
[313251983,1707025832818,-5000.0,0.00022789,2]
[313251984,1707025832826,-5000.0,0.00022789,2]
[313251986,1707025832835,-5000.0,0.00022789,2]
[313251988,1707025832844,-2764.14944603,0.00022789,2]
[313252111,1707025838764,-155.0,0.00020295,4]
[313252113,1707025838775,-803.28,0.00022321,3]
[313252115,1707025838785,-20590.23663092,0.00022789,2]
[313252117,1707025838796,-5000.0,0.00022789,2]
[313252120,1707025838807,-5000.0,0.00022789,2]
[313252122,1707025838817,-5000.0,0.00022789,2]
[313252124,1707025838828,-548.56178385,0.00022789,2]
[313252126,1707025838840,-730.09711842,0.00022789,2]
[313252335,1707025843764,-3721.34109773,0.00022789,2]
[313252336,1707025843775,-3344.05555709,0.00022789,2]
[313252379,1707026288367,10000.0,0.0002001,2]
[313252380,1707026347909,24900.0,0.00019642,2]
[313252381,1707026372437,622.14267495,0.0002001,2]
[313252382,1707026392490,626.48866512,0.00019642,2]
[313252383,1707026600926,5000.0,0.000201,6]
[313252384,1707026608354,199.5971439,0.00019305,2]
[313252387,1707026834293,24900.0,0.00019278,2]
[313252435,1707027031834,-167.39079548,0.00020151,2]
[313252437,1707027031845,-1294.17,0.00020152,3]
[313252439,1707027031857,-155.0,0.00020155,2]
[313252441,1707027031867,-1997.98710602,0.00020155,2]
[313252444,1707027031879,-213.92828324,0.00020156,2]
[313252446,1707027031889,-273.2180183,0.00020156,2]
[313252448,1707027031899,-294.34441752,0.00020156,2]
[313252450,1707027031909,-295.56299471,0.00020157,2]
[313252452,1707027031918,-155.0,0.00020157,2]
[313252454,1707027031928,-689.61806868,0.00020157,2]
[313252456,1707027031937,-673.60677825,0.00020157,2]
[313252458,1707027031947,-167.05841749,0.00020158,2]
[313252460,1707027031957,-1803.71934173,0.00020158,2]
[313252462,1707027031968,-261.69062499,0.00020159,2]
[313252464,1707027031979,-155.0,0.00020159,4]
[313252467,1707027031991,-159.16620816,0.00020159,2]
[313252469,1707027032002,-155.0,0.0002016,2]
[313252471,1707027032013,-19743.97000718,0.0002016,2]
[313252473,1707027032024,-1487.20933595,0.00020161,2]
[313252475,1707027032034,-19124.88822616,0.00020161,2]
[313252476,1707027032044,-20917.8332955,0.00020161,2]
[313252477,1707027032054,-3753.61482354,0.00020162,2]
[313252478,1707027032064,-228.80459476,0.00020164,2]
[313252479,1707027032074,-180.83205438,0.00020165,2]
[313252480,1707027032083,-15654.97260937,0.00020256,2]
[313252481,1707027032093,-20935.35188878,0.00020262,2]
[313252482,1707027032103,-2108.41977723,0.00020262,2]
[313252483,1707027032113,-1665.53519208,0.00020533,2]
[313252484,1707027032124,-200.25610342,0.00020659,2]
[313252485,1707027032134,-1467.79419781,0.00020676,2]
[313252521,1707027038172,-181.4071721,0.00020151,2]
[313252522,1707027038185,-13500.87743083,0.00020676,2]
[313252523,1707027038195,-415.98571844,0.00020689,2]
[313252524,1707027038205,-180.83205435,0.00021006,2]
[313252525,1707027038215,-180.83205435,0.00021848,2]
[313252526,1707027038224,-168.256816,0.00021918,2]
[313252527,1707027038236,-200.0,0.00022305,7]
[313252528,1707027038246,-169.16269535,0.000225,2]
[313252529,1707027038258,-205.14285947,0.00022689,2]
[313252530,1707027038268,-180.83205435,0.00022689,2]
[313252531,1707027038278,-155.0,0.000227,2]
[313252532,1707027038290,-1078.47,0.00022777,3]
[313252533,1707027038299,-5771.28190325,0.00022783,2]
[313252534,1707027038309,-309.80747304,0.00022786,2]
[313252535,1707027038318,-155.26262696,0.00022787,2]
[313252536,1707027038327,-155.65616961,0.00022787,2]
[313252537,1707027038336,-643.72475906,0.00022787,2]
[313252538,1707027038345,-719.66332629,0.00022787,2]
[313252539,1707027038353,-430.44662395,0.00022787,2]
[313252540,1707027038363,-705.82841832,0.00022787,2]
[313252541,1707027038374,-200.12286559,0.00022787,2]
[313252542,1707027038385,-3998.0860109,0.00022787,2]
[313252543,1707027038395,-1266.95335862,0.00022787,2]
[313252544,1707027038405,-156.0328404,0.00022787,2]
[313252545,1707027038414,-225.80389984,0.00022787,2]
[313252546,1707027038423,-155.75416563,0.00022787,2]
[313252547,1707027038433,-429.13620212,0.00022787,2]
[313252548,1707027038442,-6344.87830481,0.00022787,2]
[313252549,1707027038452,-156.58269369,0.00022787,2]
[313252550,1707027038462,-156.42354945,0.00022787,2]
[313252551,1707027038471,-164.9011582,0.00022787,2]
[313252552,1707027038482,-157.05629758,0.00022787,2]
[313252553,1707027038491,-4862.46750387,0.00022787,2]
[313252554,1707027038502,-155.50112896,0.00022787,2]
[313252555,1707027038511,-155.61696221,0.00022787,2]
[313252556,1707027038521,-310.00155002,0.00022787,2]
[313252557,1707027038531,-300.01438925,0.00022787,2]
[313252558,1707027038540,-2214.64186464,0.00022787,2]
[313252559,1707027038551,-68131.7272491,0.00022787,2]
[313252560,1707027038561,-151.532648,0.00022787,2]
[313252561,1707027038570,-151.0,0.00022787,2]
[313252562,1707027038579,-152.235938,0.00022787,2]
[313252563,1707027038590,-1062.755693,0.00022787,2]
[313252564,1707027038599,-1062.755693,0.00022787,2]
[313252565,1707027038609,-1062.755693,0.00022787,2]
[313252566,1707027038620,-1062.755693,0.00022787,2]
[313252567,1707027038631,-151.0,0.00022787,2]
[313252568,1707027038642,-151.0,0.00022787,2]
[313252569,1707027038652,-151.0,0.00022787,2]
[313252570,1707027038664,-151.0,0.00022787,2]
[313252571,1707027038675,-151.638592,0.00022787,2]
[313252572,1707027038685,-3414.275328,0.00022787,2]
[313252573,1707027038695,-3414.275328,0.00022787,2]
[313252574,1707027038706,-3414.275328,0.00022787,2]
[313252575,1707027038717,-3414.275328,0.00022787,2]
[313252576,1707027038727,-3414.275328,0.00022787,2]
[313252577,1707027038737,-3414.275328,0.00022787,2]
[313252578,1707027038747,-352.839811,0.00022787,2]
[313252579,1707027038756,-352.839811,0.00022787,2]
[313252580,1707027038765,-352.839811,0.00022787,2]
[313252581,1707027038774,-352.839811,0.00022787,2]
[313252582,1707027038784,-352.839811,0.00022787,2]
[313252583,1707027038793,-352.839811,0.00022787,2]
[313252584,1707027038803,-8009.01768045,0.00022788,2]
[313252585,1707027038812,-500.0,0.00022788,2]
[313252586,1707027038822,-500.0,0.00022788,2]
[313252587,1707027038832,-500.0,0.00022788,2]
[313252588,1707027038841,-500.0,0.00022788,2]
[313252589,1707027038850,-174.00739868,0.00022788,2]
[313252590,1707027038859,-500.0,0.00022788,2]
[313252591,1707027038868,-441.94480198,0.00022788,2]
[313252592,1707027038877,-500.0,0.00022788,2]
[313252593,1707027038886,-500.0,0.00022788,2]
[313252594,1707027038896,-500.0,0.00022788,2]
[313252595,1707027038905,-325.84434833,0.00022788,2]
[313252596,1707027038914,-500.0,0.00022788,2]
[313252597,1707027038923,-500.0,0.00022788,2]
[313252598,1707027038933,-303.687969,0.00022788,2]
[313252599,1707027038942,-549.91411237,0.00022788,2]
[313252600,1707027038951,-500.0,0.00022788,2]
[313252601,1707027038960,-500.0,0.00022788,2]
[313252602,1707027038969,-500.0,0.00022788,2]
[313252603,1707027038978,-457.69293873,0.00022788,2]
[313252604,1707027038987,-500.0,0.00022788,2]
[313252605,1707027038996,-500.0,0.00022788,2]
[313252606,1707027039005,-500.0,0.00022788,2]
[313252607,1707027039014,-500.0,0.00022788,2]
[313252608,1707027039023,-500.0,0.00022788,2]
[313252609,1707027039032,-500.0,0.00022788,2]
[313252610,1707027039042,-353.61925838,0.00022788,2]
[313252611,1707027039052,-500.0,0.00022788,2]
[313252612,1707027039062,-500.0,0.00022788,2]
[313252613,1707027039071,-500.0,0.00022788,2]
[313252614,1707027039080,-500.0,0.00022788,2]
[313252615,1707027039089,-278.67596577,0.00022788,2]
[313252616,1707027039098,-500.0,0.00022788,2]
[313252617,1707027039107,-151.0,0.00022788,2]
[313252618,1707027039116,-151.0,0.00022788,2]
[313252619,1707027039125,-1062.755693,0.00022788,2]
[313252620,1707027039134,-1062.755693,0.00022788,2]
[313252621,1707027039144,-1062.755693,0.00022788,2]
[313252622,1707027039152,-1062.755693,0.00022788,2]
[313252623,1707027039162,-151.0,0.00022788,2]
[313252624,1707027039170,-151.0,0.00022788,2]
[313252625,1707027039179,-151.0,0.00022788,2]
[313252626,1707027039188,-151.0,0.00022788,2]
[313252627,1707027039198,-3414.275328,0.00022788,2]
[313252628,1707027039209,-3414.275328,0.00022788,2]
[313252629,1707027039221,-3414.275328,0.00022788,2]
[313252630,1707027039231,-3414.275328,0.00022788,2]
[313252631,1707027039242,-352.839811,0.00022788,2]
[313252632,1707027039252,-352.839811,0.00022788,2]
[313252633,1707027039262,-352.839811,0.00022788,2]
[313252634,1707027039272,-352.839811,0.00022788,2]
[313252635,1707027039283,-1704.03185496,0.00022789,2]
[313252636,1707027039293,-5000.0,0.00022789,2]
[313252637,1707027039303,-5000.0,0.00022789,2]
[313252638,1707027039314,-5000.0,0.00022789,2]
[313252639,1707027039325,-5000.0,0.00022789,2]
[313252640,1707027039334,-5000.0,0.00022789,2]
[313252641,1707027039343,-5000.0,0.00022789,2]
[313252642,1707027039353,-5000.0,0.00022789,2]
[313252643,1707027039363,-5000.0,0.00022789,2]
[313252644,1707027039373,-5000.0,0.00022789,2]
[313252645,1707027039384,-5000.0,0.00022789,2]
[313252646,1707027039393,-7386.59447873,0.00022789,2]
[313252647,1707027039403,-5000.0,0.00022789,2]
[313252648,1707027039411,-5000.0,0.00022789,2]
[313252649,1707027039421,-5000.0,0.00022789,2]
[313252650,1707027039431,-5000.0,0.00022789,2]
[313252651,1707027039440,-5000.0,0.00022789,2]
[313252652,1707027039449,-201.51917698,0.00022789,2]
[313252653,1707027039459,-1830.32102826,0.00022789,2]
[313252654,1707027039471,-994.15525591,0.00022789,2]
[313252655,1707027039480,-273114.15044625,0.00022789,2]
[313252656,1707027039491,-230.59385085,0.00022789,2]
[313252657,1707027039500,-155.35278738,0.00022789,2]
[313252658,1707027039510,-2094.94437369,0.00022789,2]
[313252659,1707027039520,-151.0,0.00022789,2]
[313252660,1707027039529,-151.0,0.00022789,2]
[313252661,1707027039537,-151.0,0.00022789,2]
[313252662,1707027039546,-151.0,0.00022789,2]
[313252663,1707027039556,-247.549141,0.00022789,2]
[313252664,1707027039566,-1062.755693,0.00022789,2]
[313252665,1707027039575,-1062.755693,0.00022789,2]
[313252666,1707027039587,-1062.755693,0.00022789,2]
[313252667,1707027039596,-1062.755693,0.00022789,2]
[313252668,1707027039607,-1062.755693,0.00022789,2]
[313252669,1707027039618,-1062.755693,0.00022789,2]
[313252670,1707027039629,-1062.755693,0.00022789,2]
[313252671,1707027039639,-1062.755693,0.00022789,2]
[313252672,1707027039648,-1062.755693,0.00022789,2]
[313252673,1707027039659,-1062.755693,0.00022789,2]
[313252674,1707027039670,-1062.755693,0.00022789,2]
[313252675,1707027039680,-1062.7557,0.00022789,2]
[313252676,1707027039689,-151.0,0.00022789,2]
[313252677,1707027039699,-151.0,0.00022789,2]
[313252678,1707027039708,-151.0,0.00022789,2]
[313252679,1707027039717,-151.0,0.00022789,2]
[313252680,1707027039726,-151.0,0.00022789,2]
[313252681,1707027039735,-151.0,0.00022789,2]
[313252682,1707027039745,-244.506287,0.00022789,2]
[313252683,1707027039756,-3414.275328,0.00022789,2]
[313252684,1707027039765,-3414.275328,0.00022789,2]
[313252685,1707027039775,-3414.275328,0.00022789,2]
[313252686,1707027039784,-3414.275328,0.00022789,2]
[313252687,1707027039793,-3414.275328,0.00022789,2]
[313252688,1707027039802,-3414.275328,0.00022789,2]
[313252689,1707027039811,-3414.275328,0.00022789,2]
[313252690,1707027039820,-3414.275328,0.00022789,2]
[313252691,1707027039829,-3414.275328,0.00022789,2]
[313252692,1707027039838,-3414.275329,0.00022789,2]
[313252693,1707027039847,-352.839811,0.00022789,2]
[313252694,1707027039857,-352.839811,0.00022789,2]
[313252695,1707027039867,-352.839811,0.00022789,2]
[313252696,1707027039876,-352.839811,0.00022789,2]
[313252697,1707027039887,-352.839811,0.00022789,2]
[313252698,1707027039897,-352.839811,0.00022789,2]
[313252699,1707027039906,-352.839811,0.00022789,2]
[313252700,1707027039915,-352.839811,0.00022789,2]
[313252701,1707027039926,-352.839811,0.00022789,2]
[313252702,1707027039935,-352.839806,0.00022789,2]
[313252703,1707027039945,-500.0,0.00022844,2]
[313252704,1707027039955,-320.20244355,0.00022844,2]
[313252705,1707027039964,-453.2977667,0.00022844,2]
[313252706,1707027039974,-500.0,0.00022844,2]
[313252707,1707027039982,-500.0,0.00022844,2]
[313252708,1707027039991,-500.0,0.00022844,2]
[313252709,1707027040000,-597.77688368,0.00022844,2]
[313252710,1707027040009,-500.0,0.00022844,2]
[313252711,1707027040019,-500.0,0.00022844,2]
[313252712,1707027040030,-361.77129464,0.00022844,2]
[313252713,1707027040040,-500.0,0.00022844,2]
[313252714,1707027040050,-163.26245754,0.00022844,2]
[313252715,1707027040060,-500.0,0.00022844,2]
[313252716,1707027040069,-500.0,0.00022844,2]
[313252717,1707027040080,-485.55697174,0.00022844,2]
[313252718,1707027040091,-500.0,0.00022844,2]
[313252719,1707027040101,-500.0,0.00022844,2]
[313252720,1707027040110,-340.87140834,0.00022844,2]
[313252721,1707027040122,-288.74526777,0.00022844,2]
[313252722,1707027040132,-500.0,0.00022844,2]
[313252723,1707027040142,-500.0,0.00022844,2]
[313252724,1707027040153,-500.0,0.00022844,2]
[313252725,1707027040163,-500.0,0.00022844,2]
[313252726,1707027040173,-500.0,0.00022844,2]
[313252727,1707027040185,-500.0,0.00022844,2]
[313252728,1707027040194,-500.0,0.00022844,2]
[313252729,1707027040205,-500.0,0.00022844,2]
[313252730,1707027040214,-500.0,0.00022844,2]
[313252731,1707027040225,-500.0,0.00022844,2]
[313252732,1707027040235,-500.0,0.00022844,2]
[313252733,1707027040244,-200.0,0.00022844,2]
[313252734,1707027040254,-43517.37572359,0.00022845,2]
[313252735,1707027040265,-5000.0,0.00022845,2]
[313252736,1707027040276,-5000.0,0.00022845,2]
[313252737,1707027040287,-5000.0,0.00022845,2]
[313252738,1707027040297,-5000.0,0.00022845,2]
[313252739,1707027040308,-5000.0,0.00022845,2]
[313252740,1707027040318,-23161.03417842,0.00022845,2]
[313252741,1707027040327,-5000.0,0.00022845,2]
[313252742,1707027040336,-5000.0,0.00022845,2]
[313252743,1707027040346,-5000.0,0.00022845,2]
[313252744,1707027040355,-4047.35375281,0.00022845,2]
[313252745,1707027040366,-2112.10184617,0.00022845,2]
[313252746,1707027040376,-5000.0,0.00022845,2]
[313252747,1707027040386,-50000.0,0.00022884,2]
[313252748,1707027040397,-164.941689,0.000229,2]
[313252749,1707027040407,-262.67869248,0.0002298,2]
[313252750,1707027040416,-155.0,0.0002298,2]
[313252751,1707027040427,-155.50707279,0.00022981,2]
[313252752,1707027040438,-160.64612412,0.00022981,2]
[313252753,1707027040446,-175.58923382,0.00022981,2]
[313252754,1707027040457,-464.4371887,0.00022982,2]
[313252755,1707027040469,-4625.32452838,0.00022983,2]
[313252756,1707027040479,-5486.8778816,0.00023,2]
[313252757,1707027040488,-1264.37412318,0.00023,2]
[313252758,1707027040497,-1000.0,0.00023,2]
[313252759,1707027040507,-1000.0,0.00023,2]
[313252760,1707027040517,-1000.0,0.00023,2]
[313252761,1707027040527,-1000.0,0.00023,2]
[313252762,1707027040536,-1000.0,0.00023,2]
[313252763,1707027040546,-168.256816,0.000232,2]
[313252764,1707027040557,-228.80459473,0.00023484,2]
[313252765,1707027040567,-627.30690382,0.00023642,2]
[313252766,1707027040577,-151.0,0.00023775,2]
[313252767,1707027040590,-613.43516575,0.00024086,2]
[313252768,1707027040599,-327.7663532,0.00024086,2]
[313252769,1707027040608,-578.0,0.000244,2]
[313252770,1707027040619,-168.256816,0.00024482,2]
[313252771,1707027040628,-200.45,0.000245,2]
[313252772,1707027040638,-280.0,0.00024535,7]
[313252773,1707027040647,-1846.01,0.00024657,2]
[313252774,1707027040767,-311.27705479,0.00024657,2]
[313252775,1707027040777,-500.0,0.00024657,2]
[313252776,1707027040787,-449.78374597,0.00024657,2]
[313252777,1707027040797,-500.0,0.00024657,2]
[313252778,1707027040806,-5868.74,0.00024657,2]
[313252779,1707027040816,-2285.51,0.00024657,2]
[313252780,1707027040825,-500.0,0.00024657,2]
[313252782,1707027040833,-589.07,0.00024657,2]
[313252783,1707027040843,-1099.95,0.00024657,2]
[313252784,1707027040853,-500.0,0.00024657,2]
[313252785,1707027040862,-500.0,0.00024657,2]
[313252786,1707027040871,-603.90336946,0.00024657,2]
[313252787,1707027040880,-1612.85,0.00024657,2]
[313252788,1707027040889,-544.99,0.00024657,2]
[313252789,1707027040898,-500.0,0.00024657,2]
[313252790,1707027040907,-1028.67,0.00024657,2]
[313252791,1707027040917,-5087.55,0.00024657,2]
[313252792,1707027040926,-3404.51,0.00024657,2]
[313252793,1707027040936,-3601.46,0.00024657,2]
[313252794,1707027040945,-151.0,0.00024764,2]
[313252795,1707027040954,-205.14285945,0.00024814,2]
[313252796,1707027040963,-620.36534519,0.00024824,2]
[313252797,1707027040973,-1846.01,0.00024931,2]
[313252798,1707027040982,-500.0,0.00024931,2]
[313252800,1707027040991,-500.0,0.00024931,2]
[313252801,1707027041000,-5868.74,0.00024931,2]
[313252803,1707027041009,-2285.51,0.00024931,2]
[313252805,1707027041018,-500.0,0.00024931,2]
[313252807,1707027041028,-589.07,0.00024931,2]
[313252808,1707027041037,-1099.95,0.00024931,2]
[313252809,1707027041046,-500.0,0.00024931,2]
[313252810,1707027041055,-500.0,0.00024931,2]
[313252811,1707027041064,-1612.85,0.00024931,2]
[313252812,1707027041073,-544.99,0.00024931,2]
[313252813,1707027041082,-500.0,0.00024931,2]
[313252814,1707027041091,-1028.67,0.00024931,2]
[313252815,1707027041100,-5087.55,0.00024931,2]
[313252816,1707027041109,-3404.51,0.00024931,2]
[313252817,1707027041117,-3601.46,0.00024931,2]
[313252818,1707027041126,-944.68270751,0.00024989,2]
[313252819,1707027041136,-3832.25462016,0.00025,3]
[313252820,1707027041145,-586.9729561,0.00025,3]
[313252821,1707027041154,-155.0,0.00025,2]
[313252822,1707027041163,-3199.36540465,0.00025,2]
[313252823,1707027041172,-765.62714724,0.00025,2]
[313252824,1707027041181,-534.83687431,0.00025,2]
[313252825,1707027041189,-1831.07341754,0.00025,2]
[313252826,1707027041198,-4735.25519825,0.00025,2]
[313252827,1707027041207,-7141.15166325,0.00025,2]
[313252828,1707027041216,-237.30966898,0.00025,2]
[313252829,1707027041225,-155.0,0.00025,2]
[313252830,1707027041234,-1846.01,0.00025205,2]
[313252831,1707027041243,-500.0,0.00025205,2]
[313252832,1707027041252,-500.0,0.00025205,2]
[313252833,1707027041262,-5868.74,0.00025205,2]
[313252834,1707027041271,-2285.51,0.00025205,2]
[313252835,1707027041280,-500.0,0.00025205,2]
[313252836,1707027041289,-589.07,0.00025205,2]
[313252837,1707027041298,-1099.95,0.00025205,2]
[313252838,1707027041307,-500.0,0.00025205,2]
[313252839,1707027041317,-500.0,0.00025205,2]
[313252840,1707027041326,-1612.85,0.00025205,2]
[313252841,1707027041335,-544.99,0.00025205,2]
[313252842,1707027041344,-500.0,0.00025205,2]
[313252843,1707027041353,-1028.67,0.00025205,2]
[313252844,1707027041362,-5087.55,0.00025205,2]
[313252845,1707027041372,-3404.51,0.00025205,2]
[313252846,1707027041381,-3601.46,0.00025205,2]
[313252847,1707027041390,-297.1171087,0.00025205,2]
[313252848,1707027041400,-1846.01,0.00025479,2]
[313252849,1707027041409,-500.0,0.00025479,2]
[313252850,1707027041418,-500.0,0.00025479,2]
[313252851,1707027041427,-5868.74,0.00025479,2]
[313252852,1707027041436,-2285.51,0.00025479,2]
[313252853,1707027041445,-500.0,0.00025479,2]
[313252854,1707027041454,-589.07,0.00025479,2]
[313252855,1707027041463,-1099.95,0.00025479,2]
[313252856,1707027041473,-500.0,0.00025479,2]
[313252857,1707027041482,-500.0,0.00025479,2]
[313252858,1707027041490,-1612.85,0.00025479,2]
[313252859,1707027041499,-544.99,0.00025479,2]
[313252860,1707027041508,-500.0,0.00025479,2]
[313252861,1707027041519,-1028.67,0.00025479,2]
[313252862,1707027041528,-5087.55,0.00025479,2]
[313252863,1707027041537,-3404.51,0.00025479,2]
[313252864,1707027041546,-3601.46,0.00025479,2]
[313252865,1707027041555,-415.98571844,0.00025689,2]
[313252866,1707027041564,-500.0,0.000257,2]
[313252867,1707027041574,-159.782163,0.000257,2]
[313252868,1707027041584,-1846.01,0.00025753,2]
[313252869,1707027041596,-500.0,0.00025753,2]
[313252870,1707027041605,-500.0,0.00025753,2]
[313252871,1707027041614,-5868.74,0.00025753,2]
[313252872,1707027041623,-2285.51,0.00025753,2]
[313252873,1707027041634,-500.0,0.00025753,2]
[313252874,1707027041643,-589.07,0.00025753,2]
[313252875,1707027041652,-1099.95,0.00025753,2]
[313252876,1707027041663,-500.0,0.00025753,2]
[313252877,1707027041672,-500.0,0.00025753,2]
[313252878,1707027041681,-1612.85,0.00025753,2]
[313252879,1707027041690,-151.0,0.00025753,2]
[313252880,1707027041699,-544.99,0.00025753,2]
[313252881,1707027041708,-500.0,0.00025753,2]
[313252882,1707027041718,-1028.67,0.00025753,2]
[313252883,1707027041727,-5087.55,0.00025753,2]
[313252884,1707027041736,-3404.51,0.00025753,2]
[313252885,1707027041745,-3601.46,0.00025753,2]
[313252886,1707027041754,-344.0903,0.000258,2]
[313252887,1707027041763,-200.0,0.00026,2]
[313252888,1707027041772,-4444.29742324,0.00026,2]